{"text_format":"2","workbook":"xlsx","n_sheets":13,"sheets":["Impromptu","Super Chamber ranks","Chamber Assignments","break and out rounds","Judges","Speech Scores","Chamber 1 ranks","Chaber 2 ranks","Chamber 3 ranks","Chamber 1 seating charts","Chamber 2 seating charts","Chamber 3 seating charts","Super Chamber seating charts"],"not_rendered":{"charts":0,"images":0,"macros":0,"external_links":0,"defined_names":0,"comments":0,"pivot_tables":0},"unopened":[],"bounds":{"document_bytes":16777216,"sheet_cells":100000,"run_cost":"one","rows_first":2000,"rows_last":500,"rows_between":2000,"halvings":0,"cell_chars":16384,"cell_head_chars":4096},"cells_cut":0,"cells_raw":0,"read":"whole","date_system":"1900"}

{"sheet":"Impromptu","index":0,"n_rows":26,"n_cols":11,"rows_kept":26,"cut":false,"hidden":false,"merged":[]}
["Birds of Prey 2016 Impromptu Results"]
[null,null,"Round 1",null,"Round 2",null,"Round 3"]
["Name","School","Rank","Perc.","Rank","Perc.","Rank","Perc.","Total","Perc."]
["Sam Padmanabhan","East Ridge",2.0,99.0,1.0,98.0,1.0,98.0,{"$f":"sum(C4+E4+G4)","v":4},295,1.0]
["Nibraas Khan","Eagan",2.0,96.0,1.0,98.0,1.0,100.0,{"$f":"sum(C5+E5+G5)","v":4},294,2.0]
["Allison Birk","STMA",1.0,100.0,2.0,97.0,2.0,97.0,{"$f":"sum(C6+E6+G6)","v":5},294,3.0]
["Tallan Johnson","NLA",2.0,97.0,3.0,96.0,1.0,98.0,{"$f":"sum(C7+E7+G7)","v":6},291,4.0]
["Ijeoma Ugboajah","Eagan",2.0,97.0,2.0,97.0,2.0,96.0,{"$f":"sum(C8+E8+G8)","v":6},290,5.0]
["Justin Hammond","East Ridge",1.0,98.0,2.0,96.0,3.0,95.0,{"$f":"sum(C9+E9+G9)","v":6},289,"HM"]
["Evan VanDerHoven","Eagan",1.0,98.0,3.0,95.0,2.0,96.0,{"$f":"sum(C10+E10+G10)","v":6},289,"HM"]
["Daniel Johnson","East Ridge",1.0,96.0,4.0,93.0,1.0,97.0,{"$f":"sum(C11+E11+G11)","v":6},286,"HM"]
["Kevin Jacobson","MG",1.0,100.0,4.0,95.0,2.0,96.0,{"$f":"sum(C12+E12+G12)","v":7},291]
["Elena Getchel","NLA",2.0,97.0,2.0,97.0,3.0,93.0,{"$f":"sum(C13+E13+G13)","v":7},287]
["Alex Yang","East Ridge",3.0,94.0,1.0,98.0,3.0,95.0,{"$f":"sum(C14+E14+G14)","v":7},287]
["Jeffrey Chen","Eagan",3.0,95.0,2.0,95.0,2.0,97.0,{"$f":"sum(C15+E15+G15)","v":7},287]
["Sarah Burger","Forest Lake",2.0,95.0,1.0,100.0,4.0,91.0,{"$f":"sum(C16+E16+G16)","v":7},286]
["Victoria Cebula","Forest Lake",2.0,97.0,3.0,96.0,3.0,95.0,{"$f":"sum(C17+E17+G17)","v":8},288]
["Brittany Chino","Eagan",3.0,94.0,1.0,98.0,4.0,94.0,{"$f":"sum(C18+E18+G18)","v":8},286]
["Lily Pop","Forest Lake",2.0,96.0,2.0,97.0,5.0,90.0,{"$f":"sum(C19+E19+G19)","v":9},283]
["Erin O'Brien","Forest Lake",4.0,93.0,3.0,96.0,2.0,94.0,{"$f":"sum(C20+E20+G20)","v":9},283]
["Dylan Good","NLA",5.0,92.0,4.0,95.0,1.0,100.0,{"$f":"sum(C21+E21+G21)","v":10},287]
["Sayan Das","Spring Lake Park",5.0,90.0,4.0,95.0,1.0,98.0,{"$f":"sum(C22+E22+G22)","v":10},283]
["Madeline Shoenberger","NLA",4.0,93.0,3.0,93.0,3.0,93.0,{"$f":"sum(C23+E23+G23)","v":10},279]
["Sana Wazuaz","Spring Lake Park",5.0,90.0,1.0,98.0,5.0,90.0,{"$f":"sum(C24+E24+G24)","v":11},278]
["Mikayla Samlaska","NLA",3.0,93.0,5.0,90.0,3.0,93.0,{"$f":"sum(C25+E25+G25)","v":11},276]
["Noah Hampton","NLA",5.0,90.0,3.0,92.0,5.0,90.0,{"$f":"sum(C26+E26+G26)","v":13},272]

{"sheet":"Super Chamber ranks","index":1,"n_rows":23,"n_cols":7,"rows_kept":23,"cut":false,"hidden":false,"merged":[]}
["Birds of Prey"]
[]
["Student Name","School","J1","J2","Parli","Total","Place"]
["Kevin Jacobson","Maple Grove",1.0,1.0,1.0,{"$f":"SUM(C4+D4+E4)","v":3},"1st"]
["Daniel Johnson","East Ridge",3.0,2.0,2.0,7,"2nd"]
["Nick Menth","Blaine",9.0,3.0,4.0,16,"3rd"]
["Dylan Clausen","Elk River",5.0,8.0,3.0,16,"4th"]
["Justin Hammond","East Ridge",2.0,9.0,6.0,17,"5th"]
["Jason Checinski","Blaine",6.0,4.0,8.0,18]
["Mark Salnikov","East Ridge",4.0,7.0,9.0,20]
["Sarah Hassan","Blaine",9.0,5.0,7.0,21]
["Mat Martinez-Zamora","Maple Grove",7.0,9.0,5.0,21]
["Brysen Rebischke","Blaine",9.0,6.0,9.0,24]
["Divya Badri","East Ridge",8.0,9.0,9.0,26]
["Danielle Blake","Blaine",9.0,9.0,9.0,27]
["Raunak Pandey","Eagan",9.0,9.0,9.0,27]
["Grant Davis","Eagan",9.0,9.0,9.0,27]
["Charlotte Landmark","Eagan",9.0,9.0,9.0,27]
["Annika Frazer","East Ridge",9.0,9.0,9.0,27]
["Jared Schmelz","Maple Grove",9.0,9.0,9.0,27]
["Brianna Khieu","Maple Grove",9.0,9.0,9.0,27]
[{"$nulls":5},0]
[{"$nulls":5},0]

{"sheet":"Chamber Assignments","index":2,"n_rows":21,"n_cols":8,"rows_kept":21,"cut":false,"hidden":false,"merged":[]}
["Birds of Prey"]
[]
[]
["Chamber A","Room: B237",null,"Chamber B","Room: B238",null,"Chamber C","Room: B239"]
["Megan Harms","Andover",null,"Brysen Rebischke","Blaine",null,"Danielle Blake","Blaine"]
["Beth Blake","Blaine",null,"Jason Checinski","Blaine",null,"Jeffrey Bauers","Blaine"]
["Garret Fraser","Blaine",null,"Nick Menth","Blaine",null,"Sarah Hassan","Blaine"]
["Andre Hardy","Champlin Park",null,"Farhin Sayeed","Champlin Park",null,"Grace Bassekle","Champlin Park"]
["Charlotte Landmark","Eagan",null,"Jack Joa","Champlin Park",null,"Raajii Daniel","Champlin Park"]
["Grant Davis","Eagan",null,"Clarice Rheault","Eagan",null,"Ethan Worner","Eagan"]
["Annika Frazer","East Ridge",null,"Daniel Johnson","East Ridge",null,"Raunak Pandey","Eagan"]
["Jessica Counsil","East Ridge",null,"Joanna Chen","East Ridge",null,"Divya Badri","East Ridge"]
["Justin Hammond","East Ridge",null,"Mark Salnikov","East Ridge",null,"Julie Ma","East Ridge"]
["Mridula Arun","East Ridge",null,"Matthew Strupp","Forest Lake Sr",null,"Michael Atkinson","East Ridge"]
["Bowen Zheng","Edina",null,"Erica Teixeira","Maple Grove",null,"Alexander Al-Najim","Edina"]
["Lily Pope","Forest Lake Sr",null,"Kevin Jacobson","Maple Grove",null,"Dylan Clausen","Elk River"]
["Brianna Khieu","Maple Grove",null,"Abigail Peterson","North Lakes",null,"Reese Herrmann","Forest Lake Sr"]
["Jared Schmelz","Maple Grove",null,"Elena Getchell","North Lakes",null,"Mat Martinez-Zamora","Maple Grove"]
["Muhammad Ahsan","Maple Grove",null,"Josh Cameron","North Lakes",null,"Sarah Amundson","Maple Grove"]
["Victoria Halvorson","Maple Grove",null,"Ethan Tye","North Lakes",null,"David Povolny","North Lakes"]
[null,null,null,"Julia Soczynski","Wayzata",null,"Noah Hampton","North Lakes"]

{"sheet":"break and out rounds","index":3,"n_rows":22,"n_cols":9,"rows_kept":22,"cut":false,"hidden":false,"merged":[]}
[]
[null,"Room: B237",null,null,"Room: B238",null,null,"Room: B239"]
[null,"Super Chamber",null,null,"Consolation",null,null,"Consolation"]
[]
[null,"Nick Menth","Blaine",null,"Julia Soczynski","Wayzata",null,"Jeffrey Bauers","Blaine"]
[null,"Brysen Rebischke","Blaine",null,"Erica Teixeira","Maple Grove",null,"Michael Atkinson","East Ridge"]
[null,"Jason Checinski","Blaine",null,"Elena Getchell","North Lakes",null,"Ethan Worner","Eagan"]
[null,"Danielle Blake","Blaine",null,"Matthew Strupp","Forest Lake Sr",null,"Noah Hampton","North Lakes"]
[null,"Sarah Hassan","Blaine",null,"Abigail Peterson","North Lakes",null,"Grace Bassekle","Champlin Park"]
[null,"Raunak Pandey","Eagan",null,"Joanna Chen","East Ridge",null,"Farhin Sayeed","Champlin Park"]
[null,"Grant Davis","Eagan",null,"Alexander Al-Najim","Edina",null,"Jack Joa","Champlin Park"]
[null,"Charlotte Landmark","Eagan",null,"Raajii Daniel","Champlin Park",null,"Clarice Rheault","Eagan"]
[null,"Mark Salnikov","East Ridge",null,"Sarah Amundson","Maple Grove",null,"Josh Cameron","North Lakes"]
[null,"Daniel Johnson","East Ridge",null,"Reese Herrmann","Forest Lake Sr",null,"Ethan Tye","North Lakes"]
[null,"Divya Badri","East Ridge",null,"David Povolny","North Lakes",null,"Jessica Counsil","East Ridge"]
[null,"Annika Frazer","East Ridge",null,"Julie Ma","East Ridge",null,"Bowen Zheng","Edina"]
[null,"Justin Hammond","East Ridge",null,"Garret Fraser","Blaine",null,"Muhammad Ahsan","Maple Grove"]
[null,"Dylan Clausen","Elk River",null,"Lily Pope","Forest Lake Sr",null,"Victoria Halvorson","Maple Grove"]
[null,"Kevin Jacobson","Maple Grove",null,"Andre Hardy","Champlin Park",null,"Mridula Arun","East Ridge"]
[null,"Mat Martinez-Zamora","Maple Grove",null,"Beth Blake","Blaine",null,"Megan Harms","Andover"]
[null,"Jared Schmelz","Maple Grove"]
[null,"Brianna Khieu","Maple Grove"]

{"sheet":"Judges","index":4,"n_rows":22,"n_cols":13,"rows_kept":22,"cut":false,"hidden":false,"merged":[]}
["Birds of Prey Congress Judge List",{"$nulls":6},"Grid of who is where, and when"]
["First","Last","School"]
["Katie","Snell","Champlin Park","Helping in tab?---Parli for Super congress-could do PF rounds 1-4",null,null,null,"Chamber A",null,"Chamber B",null,"Chamber C"]
["Justin","Wewers","Neutral (Blaine)","Judge-Sessions 1 and 2, can do PF for rounds 5 and semis",null,null,null,"Parli",null,"Parli",null,"Parli"]
["Justine","Wewers","Blaine","Judge-Sessions 1 and 2, can do PF for rounds 5 and semis",null,null,null,"Amanda","Soczynski","Tricia","Nichols","Allison","Tucker"]
["Ross","Eichele","Eagan","tab",null,null,null,"Judges Session 1",null,"Judges Session 1",null,"Judges Session 1"]
["Nancy","Schneider","Eagan","Judge-Sessions 1 and 2, can do PF for rounds 5 and semis",null,null,null,"Justin","Wewers","Justine","Wewers","Nancy","Schneider"]
["Brad","Amundson","Maple Grove","Judge-Sessions 1 and 2, can do PF for rounds 5 and semis",null,null,null,"Brad","Amundson","Jody","Amundson","Meena","Bharti"]
["Jody","Amundson","Maple Grove","Judge-Sessions 1 and 2, can do PF for rounds 5 and semis"]
["Trisha","Nichols","East Ridge","Judge-Sessions 1 and 2, can do PF for rounds 5 and semis",null,null,null,"Judges Session 2",null,"Judges Session 2",null,"Judges Session 2"]
["Meena","Bharti","East Ridge","Juges - Session 1 and 2",null,null,null,"Nancy","Schneider","Meena","Bharti","Justine","Wewers"]
["Katie","Scholz","East Ridge","tab",null,null,null,"Jody","Amundson","Justin","Wewers","Brad","Amundson"]
["Amanda","Soczynski","Edina","Parli-Sessions 1 and 2, can do PF for rounds 5 and semis"]
[]
[{"$nulls":7},"Super Session Parli"]
["Jenny","Ancel","Andover","Judge for Super-can judge PF rounds 1-4",null,null,null,"Katie","Snell"]
["Amanda","Lutes","North Lakes","Judge for Super-can judge PF rounds 1-4",null,null,null,"Super Session or Consolation Judges"]
["Allison","Tucker","North Lakes","Parli-Sessions 1 and 2, can do PF for rounds 5 and semis",null,null,null,"Meena","Bharti"]
["Jenni","Dylkowski","Forest Lake Sr","Judge for Super-can judge PF rounds 1-4",null,null,null,"Terryl","Patterson"]
[{"$nulls":7},"Jenny"]
[{"$nulls":7},"Jenni","Dylkowski"]
[{"$nulls":7},"Amanda","Lutes"]

{"sheet":"Speech Scores","index":5,"n_rows":65,"n_cols":27,"rows_kept":65,"cut":false,"hidden":false,"merged":[]}
["Birds of Prey"]
["*Total speech points up to 24 may be entered as NSDA points"]
[null,null,"Speech 1",null,null,"Speech 2",null,null,"Speech 3",null,null,"Speech 4",null,null,"Speech 5",null,null,"Speech 6",null,null,"Speech 7",null,null,"Speech 8"]
["Student Name","Student School","J1","J2","Average","J1","J2","Avg","J1","J2","Avg","J1","J2","Avg","J1","J2","Avg","J1","J2","Avg","J1","J2","Avg","J1","J2","Avg","Total"]
["Megan Harms","Andover",2.0,4.0,{"$f":"ROUND(SUM(C5:D5)/2,0)","v":3},4.0,3.0,{"$f":"ROUND(SUM(F5:G5)/2,0)","v":4},5.0,5.0,{"$f":"ROUND(SUM(I5:J5)/2,0)","v":5},4.0,4.0,{"$f":"ROUND(SUM(L5:M5)/2,0)","v":4},null,null,{"$f":"ROUND(SUM(O5:P5)/2,0)","v":0},null,null,{"$f":"ROUND(SUM(R5:S5)/2,0)","v":0},null,null,{"$f":"ROUND(SUM(U5:V5)/2,0)","v":0},null,null,{"$f":"ROUND(SUM(X5:Y5)/2,0)","v":0},{"$f":"E5+H5+K5+N5+Q5+T5+W5+Z5","v":16}]
["Beth Blake","Blaine",4.0,5.0,5,4.0,5.0,5,4.0,4.0,4,null,null,0,null,null,0,null,null,0,null,null,0,null,null,0,14]
["Brysen Rebischke","Blaine",5.0,4.0,5,5.0,5.0,5,6.0,6.0,6,6.0,5.0,6,null,null,0,null,null,0,null,null,0,null,null,0,22]
["Danielle Blake","Blaine",5.0,4.0,5,5.0,5.0,5,5.0,6.0,6,5.0,4.0,5,null,null,0,null,null,0,null,null,0,null,null,0,21]
["Garret Fraser","Blaine",5.0,4.0,5,5.0,5.0,5,4.0,3.0,4,4.0,5.0,5,4.0,4.0,4,3.0,3.0,3,null,null,0,null,null,0,26]
["Jason Checinski","Blaine",5.0,4.0,5,4.0,5.0,5,4.0,6.0,5,6.0,6.0,6,null,null,0,null,null,0,null,null,0,null,null,0,21]
["Jeffrey Bauers","Blaine",5.0,5.0,5,3.0,3.0,3,4.0,4.0,4,null,null,0,null,null,0,null,null,0,null,null,0,null,null,0,12]
["Logan Baber","Blaine",null,null,0,null,null,0,null,null,0,null,null,0,null,null,0,null,null,0,null,null,0,null,null,0,0]
["Nick Menth","Blaine",4.0,4.0,4,5.0,5.0,5,5.0,5.0,5,5.0,5.0,5,5.0,6.0,6,null,null,0,null,null,0,null,null,0,25]
["Sarah Hassan","Blaine",5.0,5.0,5,5.0,4.0,5,6.0,5.0,6,null,null,0,null,null,0,null,null,0,null,null,0,null,null,0,16]
["Andre Hardy","Champlin Park",5.0,5.0,5,null,null,0,null,null,0,null,null,0,null,null,0,null,null,0,null,null,0,null,null,0,5]
["Farhin Sayeed","Champlin Park",5.0,4.0,5,null,null,0,null,null,0,null,null,0,null,null,0,null,null,0,null,null,0,null,null,0,5]
["Grace Bassekle","Champlin Park",3.0,3.0,3,null,null,0,null,null,0,null,null,0,null,null,0,null,null,0,null,null,0,null,null,0,3]
["Jack Joa","Champlin Park",4.0,3.0,4,4.0,3.0,4,5.0,5.0,5,5.0,5.0,5,null,null,0,null,null,0,null,null,0,null,null,0,18]
["Raajii Daniel","Champlin Park",5.0,6.0,6,6.0,4.0,5,null,null,0,null,null,0,null,null,0,null,null,0,null,null,0,null,null,0,11]
["Charlotte Landmark","Eagan",4.0,5.0,5,4.0,4.0,4,4.0,4.0,4,null,null,0,null,null,0,null,null,0,null,null,0,null,null,0,13]
["Clarice Rheault","Eagan",4.0,4.0,4,null,null,0,null,null,0,null,null,0,null,null,0,null,null,0,null,null,0,null,null,0,4]
["Ethan Worner","Eagan",4.0,4.0,4.0,3.0,2.0,3,null,null,0,null,null,0,null,null,0,null,null,0,null,null,0,null,null,0,7]
["Grant Davis","Eagan",5.0,6.0,{"$f":"ROUND(SUM(C23:D23)/2,0)","v":6},5.0,4.0,5,null,null,0,null,null,0,null,null,0,null,null,0,null,null,0,null,null,0,11]
["Kathleen Kwon","Eagan",null,null,0,null,null,0,null,null,0,null,null,0,null,null,0,null,null,0,null,null,0,null,null,0,0]
["Raunak Pandey","Eagan",4.0,4.0,4,4.0,4.0,4,4.0,5.0,5,5.0,4.0,5,4.0,5.0,5,null,null,0,null,null,0,null,null,0,23]
["Annika Frazer","East Ridge",4.0,4.0,4,4.0,4.0,4,5.0,6.0,6,5.0,6.0,6,5.0,5.0,5,null,null,0,null,null,0,null,null,0,25]
["Daniel Johnson","East Ridge",5.0,4.0,5,6.0,6.0,6,5.0,5.0,5,5.0,6.0,6,null,null,0,null,null,0,null,null,0,null,null,0,22]
["Divya Badri","East Ridge",4.0,5.0,5,5.0,5.0,5,5.0,4.0,5,5.0,5.0,5,null,null,0,null,null,0,null,null,0,null,null,0,20]
["Jessica Counsil","East Ridge",4.0,5.0,5,4.0,4.0,4,null,null,0,null,null,0,null,null,0,null,null,0,null,null,0,null,null,0,9]
["Joanna Chen","East Ridge",4.0,4.0,4,4.0,4.0,4,null,null,0,null,null,0,null,null,0,null,null,0,null,null,0,null,null,0,8]
["Julie Ma","East Ridge",4.0,4.0,4,4.0,5.0,5,4.0,4.0,4,null,null,0,null,null,0,null,null,0,null,null,0,null,null,0,13]
["Justin Hammond","East Ridge",6.0,5.0,6,6.0,4.0,5,6.0,5.0,6,5.0,6.0,6,null,null,0,null,null,0,null,null,0,null,null,0,23]
["Mark Salnikov","East Ridge",6.0,5.0,6,4.0,5.0,5,6.0,6.0,6,6.0,6.0,6,6.0,6.0,6,null,null,0,null,null,0,null,null,0,29]
["Michael Atkinson","East Ridge",4.0,5.0,5,5.0,5.0,5,null,null,0,null,null,0,null,null,0,null,null,0,null,null,0,null,null,0,10]
["Mridula Arun","East Ridge",5.0,4.0,5,4.0,4.0,4,null,null,0,null,null,0,null,null,0,null,null,0,null,null,0,null,null,0,9]
["Nicholas Grundhauser","East Ridge",null,null,0,null,null,0,null,null,0,null,null,0,null,null,0,null,null,0,null,null,0,null,null,0,0]
["Alexander Al-Najim","Edina",5.0,4.0,5,5.0,5.0,5,3.0,4.0,4,4.0,4.0,4,3.0,3.0,3,null,null,0,null,null,0,null,null,0,21]
["Bowen Zheng","Edina",5.0,4.0,5,4.0,4.0,4,null,null,0,null,null,0,null,null,0,null,null,0,null,null,0,null,null,0,9]
["Victor Nikolov","Edina",null,null,0,null,null,0,null,null,0,null,null,0,null,null,0,null,null,0,null,null,0,null,null,0,0]
["Dylan Clausen","Elk River",5.0,6.0,6,5.0,6.0,6,6.0,6.0,6,6.0,6.0,6,6.0,6.0,6,5.0,5.0,5,null,null,0,null,null,0,35]
["Lily Pope","Forest Lake Sr",5.0,5.0,5,5.0,4.0,5,null,null,0,null,null,0,null,null,0,null,null,0,null,null,0,null,null,0,10]
["Matthew Strupp","Forest Lake Sr",3.0,2.0,3,5.0,4.0,5,null,null,0,null,null,0,null,null,0,null,null,0,null,null,0,null,null,0,8]
["Reese Herrmann","Forest Lake Sr",4.0,5.0,5,5.0,3.0,4,5.0,4.0,5,3.0,3.0,3,2.0,2.0,2,null,null,0,null,null,0,null,null,0,19]
["Brianna Khieu","Maple Grove",5.0,4.0,5,3.0,5.0,4,4.0,4.0,4,null,null,0,null,null,0,null,null,0,null,null,0,null,null,0,13]
["Erica Teixeira","Maple Grove",5.0,4.0,5,5.0,4.0,5,5.0,4.0,5,3.0,3.0,3,null,null,0,null,null,0,null,null,0,null,null,0,18]
["Jake Ashurov","Maple Grove",null,null,0,null,null,0,null,null,0,null,null,0,null,null,0,null,null,0,null,null,0,null,null,0,0]
["Jared Schmelz","Maple Grove",3.0,5.0,4,5.0,5.0,5,4.0,5.0,5,null,null,0,null,null,0,null,null,0,null,null,0,null,null,0,14]
["Kevin Jacobson","Maple Grove",6.0,5.0,6,6.0,5.0,6,6.0,5.0,6,5.0,6.0,6,6.0,6.0,6,null,null,0,null,null,0,null,null,0,30]
["Mat Martinez-Zamora","Maple Grove",5.0,5.0,5,4.0,5.0,5,5.0,4.0,5,null,null,0,null,null,0,null,null,0,null,null,0,null,null,0,15]
["Muhammad Ahsan","Maple Grove",5.0,5.0,5,null,null,0,null,null,0,null,null,0,null,null,0,null,null,0,null,null,0,null,null,0,5]
["Rachel Mills","Maple Grove",null,null,0,null,null,0,null,null,0,null,null,0,null,null,0,null,null,0,null,null,0,null,null,0,0]
["Sarah Amundson","Maple Grove",5.0,5.0,5,4.0,4.0,4,null,null,0,null,null,0,null,null,0,null,null,0,null,null,0,null,null,0,9]
["Victoria Halvorson","Maple Grove",null,null,0,null,null,0,null,null,0,null,null,0,null,null,0,null,null,0,null,null,0,null,null,0,0]
["Abigail Peterson","North Lakes",4.0,3.0,4,4.0,4.0,4,3.0,3.0,3,null,null,0,null,null,0,null,null,0,null,null,0,null,null,0,11]
["David Povolny","North Lakes",4.0,5.0,5,4.0,4.0,4,4.0,5.0,5,3.0,3.0,3,null,null,0,null,null,0,null,null,0,null,null,0,17]
["Deanna Dale","North Lakes",null,null,0,null,null,0,null,null,0,null,null,0,null,null,0,null,null,0,null,null,0,null,null,0,0]
["Elena Getchell","North Lakes",4.0,4.0,4,5.0,4.0,5,6.0,5.0,6,4.0,4.0,4,null,null,0,null,null,0,null,null,0,null,null,0,19]
["Erik Weiss","North Lakes",null,null,0,null,null,0,null,null,0,null,null,0,null,null,0,null,null,0,null,null,0,null,null,0,0]
["Ethan Tye","North Lakes",null,null,0,null,null,0,null,null,0,null,null,0,null,null,0,null,null,0,null,null,0,null,null,0,0]
["Josh Cameron","North Lakes",4.0,3.0,4,4.0,4.0,4,3.0,3.0,3,4.0,4.0,4,null,null,0,null,null,0,null,null,0,null,null,0,15]
["Noah Hampton","North Lakes",4.0,4.0,4,null,null,0,null,null,0,null,null,0,null,null,0,null,null,0,null,null,0,null,null,0,4]
["Julia Soczynski","Wayzata",4.0,3.0,4,4.0,3.0,4,5.0,5.0,5,2.0,2.0,2,null,null,0,null,null,0,null,null,0,null,null,0,15]
[{"$nulls":4},0,null,null,0,null,null,0,null,null,0,null,null,0,null,null,0,null,null,0,null,null,0,0]
[{"$nulls":4},0,null,null,0,null,null,0,null,null,0,null,null,0,null,null,0,null,null,0,null,null,0,0]
[{"$nulls":4},0,null,null,0,null,null,0,null,null,0,null,null,0,null,null,0,null,null,0,null,null,0,0]

{"sheet":"Chamber 1 ranks","index":6,"n_rows":34,"n_cols":9,"rows_kept":34,"cut":false,"hidden":false,"merged":[]}
["Birds of Prey"]
["Parli"]
["Scorers","Session 1"]
[]
[]
[null,"Session 2"]
[]
[]
[]
["Student Name","School","J1","J2","J3","J4","Parli","Total","Place"]
["Annika Frazer","East Ridge",3.0,3.0,1.0,3.0,3.0,{"$f":"C11+D11+E11+F11+G11","v":13}]
["Justin Hammond","East Ridge",1.0,9.0,2.0,1.0,2.0,15]
["Grant Davis","Eagan",8.0,1.0,5.0,2.0,1.0,17]
["Jared Schmelz","Maple Grove",9.0,2.0,3.0,5.0,9.0,28]
["Charlotte Landmark","Eagan",9.0,7.0,9.0,4.0,4.0,33]
["Brianna Khieu","Maple Grove",9.0,4.0,6.0,8.0,6.0,33]
["Garret Fraser","Blaine",5.0,9.0,8.0,7.0,5.0,34]
["Lily Pope","Forest Lake Sr",2.0,9.0,7.0,9.0,9.0,36]
["Andre Hardy","Champlin Park",4.0,6.0,9.0,9.0,9.0,37]
["Beth Blake","Blaine",9.0,9.0,4.0,9.0,9.0,40]
["Mridula Arun","East Ridge",6.0,9.0,9.0,9.0,7.0,40]
["Megan Harms","Andover",9.0,9.0,9.0,6.0,8.0,41]
["Jessica Counsil","East Ridge",9.0,5.0,9.0,9.0,9.0,41]
["Bowen Zheng","Edina",7.0,9.0,9.0,9.0,9.0,43]
["Muhammad Ahsan","Maple Grove",9.0,8.0,9.0,9.0,9.0,44]
["Victoria Halvorson","Maple Grove",9.0,9.0,9.0,9.0,9.0,45]
[{"$nulls":7},0]
[{"$nulls":7},0]
[{"$nulls":7},0]
[{"$nulls":7},0]
[{"$nulls":7},0]
[{"$nulls":7},0]
[{"$nulls":7},0]
[{"$nulls":7},0]

{"sheet":"Chaber 2 ranks","index":7,"n_rows":35,"n_cols":9,"rows_kept":35,"cut":false,"hidden":false,"merged":[]}
["Birds of Prey"]
["Parli"]
["Scorers","Session 1"]
[]
[]
[null,"Session 2"]
[]
[null,null,null,"***No 8th Place J2"]
[]
["Student Name","School","J1","J2","J3","J4","Parli","Total","Place"]
["Mark Salnikov","East Ridge",1.0,1.0,2.0,1.0,2.0,{"$f":"C11+D11+E11+F11+G11","v":7}]
["Kevin Jacobson","Maple Grove",2.0,2.0,1.0,6.0,3.0,14]
["Nick Menth","Blaine",4.0,9.0,3.0,5.0,1.0,22]
["Daniel Johnson","East Ridge",7.0,9.0,5.0,2.0,5.0,28]
["Brysen Rebischke","Blaine",8.0,7.0,4.0,4.0,6.0,29]
["Jason Checinski","Blaine",3.0,3.0,7.0,9.0,9.0,31]
["Julia Soczynski","Wayzata",9.0,4.0,9.0,7.0,4.0,33]
["Erica Teixeira","Maple Grove",5.0,6.0,8.0,8.0,9.0,36]
["Elena Getchell","North Lakes",6.0,9.0,9.0,3.0,9.0,36]
["Matthew Strupp","Forest Lake Sr",9.0,9.0,6.0,9.0,7.0,40]
["Abigail Peterson","North Lakes",9.0,5.0,9.0,9.0,9.0,41]
["Joanna Chen","East Ridge",9.0,9.0,9.0,9.0,8.0,44]
["Farhin Sayeed","Champlin Park",9.0,9.0,9.0,9.0,9.0,45]
["Jack Joa","Champlin Park",9.0,9.0,9.0,9.0,9.0,45]
["Clarice Rheault","Eagan",9.0,9.0,9.0,9.0,9.0,45]
["Josh Cameron","North Lakes",9.0,9.0,9.0,9.0,9.0,45]
["Ethan Tye","North Lakes",9.0,9.0,9.0,9.0,9.0,45]
[{"$nulls":7},0]
[{"$nulls":7},0]
[{"$nulls":7},0]
[{"$nulls":7},0]
[{"$nulls":7},0]
[{"$nulls":7},0]
[{"$nulls":7},0]
[{"$nulls":7},0]

{"sheet":"Chamber 3 ranks","index":8,"n_rows":35,"n_cols":9,"rows_kept":35,"cut":false,"hidden":false,"merged":[]}
["Birds of Prey"]
["Parli"]
["Scorers","Session 1"]
[]
[]
[null,"Session 2"]
[]
[]
[]
["Student Name","School","J1","J2","J3","J4","Parli","Total","Place"]
["Dylan Clausen","Elk River",1.0,1.0,8.0,7.0,1.0,{"$f":"C11+D11+E11+F11+G11","v":18}]
["Danielle Blake","Blaine",4.0,9.0,2.0,5.0,4.0,24]
["Raunak Pandey","Eagan",2.0,8.0,2.0,2.0,11.0,25]
["Divya Badri","East Ridge",6.0,9.0,4.0,3.0,5.0,27]
["Mat Martinez-Zamora","Maple Grove",9.0,5.0,5.0,8.0,2.0,29]
["Sarah Hassan","Blaine",9.0,9.0,9.0,1.0,3.0,31]
["Alexander Al-Najim","Edina",3.0,3.0,9.0,9.0,7.0,31]
["Raajii Daniel","Champlin Park",5.0,2.0,1.0,9.0,17.0,34]
["Sarah Amundson","Maple Grove",9.0,9.0,3.0,4.0,10.0,35]
["Reese Herrmann","Forest Lake Sr",8.0,7.0,6.0,9.0,6.0,36]
["David Povolny","North Lakes",7.0,9.0,9.0,6.0,9.0,40]
["Julie Ma","East Ridge",9.0,9.0,7.0,9.0,7.0,41]
["Jeffrey Bauers","Blaine",9.0,4.0,9.0,9.0,15.0,46]
["Michael Atkinson","East Ridge",9.0,6.0,9.0,9.0,14.0,47]
["Ethan Worner","Eagan",9.0,9.0,9.0,9.0,12.0,48]
["Noah Hampton","North Lakes",9.0,9.0,9.0,9.0,13.0,49]
["Grace Bassekle","Champlin Park",9.0,9.0,9.0,9.0,16.0,52]
[{"$nulls":7},0]
[{"$nulls":7},0]
[{"$nulls":7},0]
[{"$nulls":7},0]
[{"$nulls":7},0]
[{"$nulls":7},0]
[{"$nulls":7},0]
[{"$nulls":7},0]

{"sheet":"Chamber 1 seating charts","index":9,"n_rows":11,"n_cols":9,"rows_kept":11,"cut":false,"hidden":false,"merged":[]}
["Birds of Prey",null,"Chamber 1 front of room"]
[]
["Megan Harms",null,"Beth Blake",null,"Andre Hardy",null,"Alex Wilcox",null,"Charlotte Landmark"]
[]
["Annika Frazer",null,"Bowen Zheng",null,"Lily Pope",null,"Brianna Khieu",null,"Deanna Dale"]
[]
["Garret Fraser",null,"Nikolai Breimon",null,"Grant Davis",null,"Jessica Counsil",null,"Jared Schmelz"]
[]
["Ethan Tye",null,"Logan Baber",null,"Adam Daniluk",null,"Justin Hammond",null,"Muhammad Ahsan"]
[]
[null,null,"Julia Soczynski",null,"Mridula Arun",null,"Victoria Halvorson"]

{"sheet":"Chamber 2 seating charts","index":10,"n_rows":11,"n_cols":9,"rows_kept":11,"cut":false,"hidden":false,"merged":[]}
["Birds of Prey",null,"Chamber 2",null,"Front of Room"]
[]
["Brysen Rebischke",null,"Farhin Sayeed",null,"Jared Pearson",null,"Clarice Rheault",null,"Daniel Johnson"]
[]
["Victor Nikolov",null,"Matthew Strupp",null,"Erica Teixeira",null,"Abigail Peterson",null,"Jason Checinski"]
[]
["Jack Joa",null,"Skylar Nelson",null,"Kathleen Kwon",null,"Joanna Chen",null,"Kevin Jacobson"]
[]
["Nick Menth",null,"Josh Cameron",null,"Nicholas Grundhauser",null,"Rachel Mills",null,"Elena Getchell"]
[]
[null,null,"Caden Wakefield",null,"Mark Salnikov"]

{"sheet":"Chamber 3 seating charts","index":11,"n_rows":11,"n_cols":9,"rows_kept":11,"cut":false,"hidden":false,"merged":[]}
["Birds of Prey",null,"Chamber 3",null,"Front of Room"]
[]
["Danielle Blake",null,"Grace Bassekle",null,"Kong Xiong",null,"Ethan Worner",null,"Divya Badri"]
[]
["Alexander Al-Najim",null,"Dylan Clausen",null,"Reese Herrmann",null,"Jake Ashurov",null,"David Povolny"]
[]
["Jeffrey Bauers",null,"Raajii Daniel",null,"Abbie Amundsen",null,"Raunak Pandey",null,"Julie Ma"]
[]
["Mat Martinez-Zamora",null,"Erik Weiss",null,"Sarah Hassan",null,"Timothy Hoeksema",null,"Michael Atkinson"]
[]
[null,null,"Sarah Amundson",null,null,null,"Noah Hampton"]

{"sheet":"Super Chamber seating charts","index":12,"n_rows":1,"n_cols":1,"rows_kept":1,"cut":false,"hidden":false,"merged":[]}
["Birds of Prey"]